bitfinex/quotes_BTCUSD_20240605
["timestamp","ask_amount","ask_price","bid_price","bid_amount"]
[1717617857980,0.40412293,71172.0,71168.0,0.01159517]
[1717617858204,0.40412293,71172.0,71169.0,0.01159517]
[1717617858587,0.40412293,71172.0,71170.0,0.01159517]
[1717617858830,0.40412293,71172.0,71171.0,0.02211118]
[1717617859131,0.40412293,71172.0,71171.0,0.01359517]
[1717617859335,0.40412293,71172.0,71171.0,0.09379517]
[1717617859893,0.40412293,71172.0,71171.0,0.24379517]
[1717617860702,0.40412293,71172.0,71171.0,0.2322]
[1717617861101,0.40412293,71172.0,71171.0,0.002]
[1717617862734,0.428438,71190.0,71171.0,0.002]
[1717617863831,0.428438,71190.0,71172.0,0.10512646]
[1717617864353,0.442438,71190.0,71172.0,0.10512646]
[1717617864566,0.456438,71190.0,71172.0,0.10512646]
[1717617865011,0.442438,71190.0,71172.0,0.10512646]
[1717617865391,0.456438,71190.0,71172.0,0.10512646]
[1717617865591,0.47363766,71190.0,71172.0,0.13210911]
[1717617865792,0.45963766,71190.0,71173.0,0.10512646]
[1717617865988,0.45963766,71190.0,71172.0,0.02698265]
[1717617866257,0.46063766,71190.0,71172.0,0.001]
[1717617866466,0.17969966,71190.0,71172.0,0.001]
[1717617866675,0.20468756,71190.0,71172.0,0.001]
[1717617867862,0.19068756,71190.0,71172.0,0.001]
[1717617868240,0.20468756,71190.0,71173.0,0.001]
[1717617868403,0.3347954,71190.0,71173.0,0.001]
[1717617868820,0.44705371,71190.0,71172.0,0.001]
[1717617869244,0.46105371,71190.0,71172.0,0.002]
[1717617869446,0.46005371,71190.0,71172.0,0.001]
[1717617869658,0.4600654,71190.0,71172.0,0.001]
[1717617869865,0.4600654,71190.0,71173.0,0.001]
[1717617869866,0.3477954,71190.0,71173.0,0.001]
[1717617870073,0.3337954,71190.0,71172.0,0.001]
[1717617870398,0.4600654,71190.0,71172.0,0.001]
[1717617870632,0.4740654,71190.0,71172.0,0.002]
[1717617870828,0.4740654,71190.0,71172.0,0.001]
[1717617870829,0.0682,71173.0,71172.0,0.001]
[1717617871193,0.15006127,71173.0,71172.0,0.001]
[1717617872173,0.16406127,71173.0,71172.0,0.002]
[1717617873252,0.09586127,71173.0,71172.0,0.001]
[1717617873455,0.16406127,71173.0,71172.0,0.001]
[1717617873636,0.10986127,71173.0,71172.0,0.002]
[1717617873859,0.17806127,71173.0,71172.0,0.002]
[1717617875779,0.10986127,71173.0,71172.0,0.002]
[1717617876058,0.17806127,71173.0,71172.0,0.002]
[1717617876414,0.17806127,71173.0,71172.0,0.01359517]
[1717617876822,0.17806127,71173.0,71172.0,0.002]
[1717617877067,0.10986127,71173.0,71172.0,0.002]
[1717617877430,0.17806127,71173.0,71172.0,0.002]
[1717617877888,0.17806127,71173.0,71172.0,0.40155469]
[1717617878065,0.08418061,71183.0,71175.0,0.01159517]
[1717617878275,0.16741893,71182.0,71175.0,0.01159517]
[1717617879007,0.16741893,71182.0,71174.0,0.01159517]
[1717617879218,0.16741893,71182.0,71172.0,0.1684]
[1717617879219,0.14441893,71182.0,71181.0,0.239]
[1717617879434,0.14441893,71182.0,71181.0,0.45059517]
[1717617881176,0.21261893,71182.0,71181.0,0.45059517]
[1717617881610,0.02586271,71189.0,71181.0,0.24]
[1717617881810,0.0682,71182.0,71181.0,0.45159517]
[1717617882191,0.0682,71182.0,71181.0,0.45059517]
[1717617882386,0.0682,71182.0,71181.0,0.45159517]
[1717617882788,0.0692,71182.0,71181.0,0.45259517]
[1717617883396,0.0692,71182.0,71181.0,0.241]
[1717617883790,0.001,71182.0,71181.0,0.002]
[1717617884125,0.0692,71182.0,71181.0,0.002]
[1717617887093,0.0692,71182.0,71181.0,0.21359517]
[1717617887297,0.0692,71182.0,71181.0,0.002]
[1717617887492,0.0692,71182.0,71181.0,0.21359517]
[1717617888286,0.0692,71182.0,71181.0,0.25130469]
[1717617889685,0.0692,71182.0,71181.0,0.21359517]
[1717617890269,0.06600573,71182.0,71181.0,0.21359517]
[1717617891596,0.06600573,71182.0,71181.0,0.002]
[1717617891797,0.06600573,71182.0,71181.0,0.21359517]
[1717617892958,0.04205494,71199.0,71187.0,0.21159517]
[1717617893215,0.25656746,71205.0,71204.0,0.01159517]
[1717617893216,0.00086,71205.0,71204.0,0.01159517]
[1717617893426,0.00086,71205.0,71204.0,0.21159517]
[1717617893427,0.14527893,71205.0,71204.0,0.21159517]
[1717617893630,0.23026513,71205.0,71201.0,0.01159517]
[1717617893832,0.16206513,71205.0,71204.0,0.21159517]
[1717617894448,0.0176462,71205.0,71204.0,0.21159517]
[1717617894656,0.0176462,71205.0,71204.0,0.37249517]
[1717617894859,0.0176462,71205.0,71204.0,0.40974469]
[1717617895188,0.0186462,71205.0,71204.0,0.41074469]
[1717617896375,0.0186462,71205.0,71204.0,0.40974469]
[1717617896582,0.0176462,71205.0,71204.0,0.40974469]
[1717617896782,0.0176462,71205.0,71204.0,0.41074469]
[1717617896987,0.0186462,71205.0,71204.0,0.41174469]
[1717617897188,0.0186462,71205.0,71204.0,0.41074469]
[1717617897387,0.0176462,71205.0,71204.0,0.41074469]
[1717617897633,0.0176462,71205.0,71204.0,0.21074469]
[1717617897977,0.0186462,71205.0,71204.0,0.37449517]
[1717617898456,0.16306513,71205.0,71204.0,0.002]
[1717617898670,0.32786513,71205.0,71204.0,0.002]
[1717617899071,0.23126513,71205.0,71204.0,0.002]
[1717617899734,0.0186462,71205.0,71204.0,0.21359517]
[1717617899916,0.0186462,71205.0,71204.0,0.47815469]
[1717617901293,0.00086,71205.0,71204.0,0.47615469]
[1717617901727,0.00186,71205.0,71204.0,0.26655952]
[1717617901934,0.14627893,71205.0,71204.0,0.002]
[1717617902141,0.22727893,71205.0,71204.0,0.002]
[1717617903121,0.22727893,71205.0,71195.0,0.31159517]
[1717617903122,0.22627893,71205.0,71196.0,0.01159517]
[1717617903321,0.0682,71196.0,71195.0,0.11159517]
[1717617903729,0.0682,71196.0,71195.0,0.31159517]
[1717617903938,0.14441893,71204.0,71199.0,0.21159517]
[1717617904109,0.08286,71205.0,71203.0,0.21159517]
[1717617904110,0.00086,71205.0,71203.0,0.21159517]
[1717617904344,0.00086,71205.0,71204.0,0.21159517]
[1717617904494,0.00186,71205.0,71204.0,0.26283751]
[1717617904694,0.00186,71205.0,71204.0,0.21259517]
[1717617905116,0.00186,71205.0,71204.0,0.21159517]
[1717617906894,0.00086,71205.0,71204.0,0.21159517]
[1717617907091,0.00186,71205.0,71204.0,0.21259517]
[1717617907520,0.00186,71205.0,71204.0,0.21359517]
[1717617907677,0.00186,71205.0,71204.0,0.25781469]
[1717617910293,0.00186,71205.0,71204.0,0.60825569]
[1717617910479,0.00186,71205.0,71204.0,0.85395569]
[1717617910608,0.00186,71205.0,71204.0,1.13483869]
[1717617911269,0.00086,71205.0,71204.0,1.13283869]
[1717617911614,0.00186,71205.0,71204.0,1.13283869]
[1717617911875,0.00186,71205.0,71204.0,1.13983869]
[1717617912251,0.00186,71205.0,71204.0,1.13283869]
[1717617913347,0.00086,71205.0,71204.0,1.13283869]
[1717617913761,0.00086,71205.0,71204.0,1.13783869]
[1717617913977,0.00086,71205.0,71204.0,1.42572169]
[1717617914158,0.00086,71205.0,71204.0,1.51872169]
[1717617914372,0.00086,71205.0,71204.0,1.66314062]
[1717617914581,0.00086,71205.0,71204.0,1.87014062]
[1717617915021,0.00086,71205.0,71204.0,1.67014062]
[1717617915273,0.00086,71205.0,71204.0,2.04064062]
[1717617915498,0.00086,71205.0,71204.0,2.03364062]
[1717617915789,0.002,71229.0,71228.0,0.22159517]
[1717617915989,0.002,71229.0,71228.0,0.50639429]
[1717617917209,0.002,71229.0,71228.0,0.64678829]
[1717617917768,0.002,71229.0,71228.0,0.74778829]
[1717617918124,0.002,71229.0,71228.0,0.74878829]
[1717617918362,0.002,71229.0,71228.0,0.84778829]
[1717617918593,0.002,71229.0,71228.0,0.84678829]
[1717617918808,0.002,71229.0,71228.0,1.12857629]
[1717617919223,0.002,71229.0,71228.0,0.94778829]
[1717617920699,0.002,71229.0,71228.0,0.95078829]
[1717617920929,0.002,71229.0,71228.0,0.94978829]
[1717617921149,0.002,71229.0,71228.0,0.95078829]
[1717617921564,0.002,71229.0,71228.0,0.94978829]
[1717617921764,0.002,71229.0,71228.0,0.95578829]
[1717617921972,0.00286,71229.0,71228.0,0.95578829]
[1717617922181,0.00286,71229.0,71228.0,1.23657629]
[1717617923027,0.00286,71229.0,71228.0,1.23357629]
[1717617923236,0.00286,71229.0,71228.0,1.57799522]
[1717617923443,0.00286,71229.0,71228.0,1.58099522]
[1717617923964,0.00286,71229.0,71228.0,1.57199522]
[1717617924364,0.00286,71229.0,71228.0,1.86378322]
[1717617924791,0.00286,71229.0,71228.0,1.85278322]
[1717617925025,0.00286,71229.0,71228.0,1.85978322]
[1717617925433,0.00286,71229.0,71228.0,1.85278322]
[1717617925859,0.00286,71229.0,71228.0,1.85978322]
[1717617926298,0.00286,71229.0,71228.0,1.65978322]
[1717617926956,0.00286,71229.0,71228.0,1.86478322]
[1717617927180,0.00286,71229.0,71228.0,1.65778322]
[1717617927600,0.00286,71229.0,71228.0,1.85978322]
[1717617927801,0.00286,71229.0,71228.0,1.85778322]
[1717617928008,0.00286,71229.0,71228.0,2.15561167]
[1717617928219,0.00863,71254.0,71248.0,0.56194917]
[1717617928432,0.00863,71254.0,71248.0,0.82854409]
[1717617929257,0.00863,71254.0,71248.0,1.10925309]
[1717617929467,0.00863,71254.0,71248.0,1.20925309]
[1717617929994,0.00863,71254.0,71248.0,1.48996209]
[1717617930831,0.00863,71254.0,71248.0,1.49496209]
[1717617931239,0.00863,71254.0,71248.0,1.21425309]
[1717617931413,0.00863,71254.0,71248.0,0.71514409]
[1717617931615,0.00863,71254.0,71248.0,0.007]
[1717617931794,0.2501,71249.0,71248.0,0.31659517]
[1717617931999,0.4132,71249.0,71248.0,0.31659517]
[1717617932197,0.2427,71249.0,71248.0,0.31859517]
[1717617932445,0.2427,71249.0,71248.0,0.15289592]
[1717617932649,0.2427,71249.0,71248.0,0.14589592]
[1717617932826,0.2427,71249.0,71248.0,0.34589592]
[1717617933025,0.2427,71249.0,71248.0,0.35289592]
[1717617933232,0.2427,71249.0,71248.0,0.36449109]
[1717617933500,0.2427,71249.0,71248.0,0.15289592]
[1717617933875,0.2427,71249.0,71248.0,0.35789592]
[1717617934107,0.2427,71249.0,71248.0,0.36949109]
[1717617934255,0.2427,71249.0,71248.0,0.35749109]
[1717617934469,0.002,71249.0,71248.0,0.50784509]
[1717617934731,0.002,71249.0,71248.0,0.50984509]
[1717617934732,0.003,71249.0,71248.0,0.50984509]
[1717617935149,0.003,71249.0,71248.0,0.60984509]
[1717617935354,0.003,71249.0,71248.0,0.76204509]
[1717617935996,0.002,71249.0,71248.0,0.76104509]
[1717617936399,0.003,71249.0,71248.0,0.86204509]
[1717617936598,0.003,71249.0,71248.0,0.93984509]
[1717617937124,0.003,71249.0,71248.0,1.21955409]
[1717617937363,0.003,71249.0,71248.0,1.22055409]
[1717617937582,0.003,71249.0,71248.0,0.93984509]
[1717617937786,0.003,71249.0,71248.0,0.93884509]
[1717617937787,0.002,71249.0,71248.0,0.93884509]
[1717617938250,0.002,71249.0,71248.0,0.93984509]
[1717617938466,0.002,71249.0,71248.0,0.93784509]
[1717617938647,0.002,71249.0,71248.0,1.22355409]
[1717617938889,0.002,71249.0,71248.0,1.23055409]
[1717617939091,0.002,71249.0,71248.0,1.22355409]
[1717617939475,0.002,71249.0,71248.0,1.22455409]
[1717617940064,0.002,71249.0,71248.0,0.70884509]
[1717617940935,0.002,71249.0,71248.0,0.70784509]
[1717617941353,0.002,71249.0,71248.0,0.71484509]
[1717617941550,0.002,71249.0,71248.0,0.70784509]
[1717617941962,0.002,71249.0,71248.0,0.70884509]
[1717617942163,0.002,71249.0,71248.0,0.69884509]
[1717617942412,0.002,71249.0,71248.0,0.70784509]
[1717617942608,0.002,71249.0,71248.0,0.94717509]
[1717617943226,0.002,71249.0,71248.0,1.22788409]
[1717617944487,0.002,71249.0,71248.0,1.23988409]
[1717617944699,0.002,71249.0,71248.0,1.23288409]
[1717617945117,0.002,71249.0,71248.0,1.23488409]
[1717617945497,0.002,71249.0,71248.0,1.22788409]
[1717617945701,0.002,71249.0,71248.0,1.23488409]
[1717617946715,0.002,71249.0,71248.0,1.23988409]
[1717617947289,0.002,71249.0,71248.0,1.22788409]
[1717617947462,0.002,71249.0,71248.0,1.23288409]
[1717617947687,0.002,71249.0,71248.0,1.23988409]
[1717617947882,0.002,71249.0,71248.0,1.23288409]
[1717617948248,0.002,71249.0,71248.0,1.23488409]
[1717617948657,0.002,71249.0,71248.0,1.50859309]
[1717617948878,0.002,71249.0,71248.0,1.51559309]
[1717617949732,0.002,71249.0,71248.0,1.52059309]
[1717617950196,0.002,71249.0,71248.0,1.51559309]
[1717617950399,0.002,71249.0,71248.0,1.66001202]
[1717617950633,0.002,71249.0,71248.0,2.31622102]
[1717617951014,0.002,71249.0,71248.0,2.30922102]
[1717617951529,0.002,71249.0,71248.0,2.31122102]
[1717617951731,0.002,71249.0,71248.0,2.31622102]
[1717617952280,0.002,71249.0,71248.0,2.30922102]
[1717617953314,0.002,71249.0,71248.0,2.30422102]
[1717617953567,0.002,71249.0,71248.0,2.31622102]
[1717617953792,0.002,71249.0,71248.0,2.11622102]
[1717617953987,0.002,71249.0,71248.0,1.83551202]
[1717617956490,0.00286,71249.0,71248.0,1.83551202]
[1717617958245,0.00286,71249.0,71248.0,1.66501202]
[1717617959056,0.00272,71249.0,71248.0,1.66501202]
[1717617960516,0.00272,71249.0,71248.0,1.28989309]
[1717617960741,0.00272,71249.0,71248.0,0.61847509]
[1717617960742,0.24372,71249.0,71248.0,0.61847509]
[1717617960966,0.24372,71249.0,71248.0,0.50984509]
[1717617961213,0.24372,71249.0,71248.0,0.36949109]
[1717617961464,0.24372,71249.0,71248.0,0.50284509]
[1717617961630,0.00272,71249.0,71248.0,0.89355409]
[1717617961836,0.00272,71249.0,71248.0,0.90055409]
[1717617962261,0.00272,71249.0,71248.0,0.89355409]
[1717617963110,0.00272,71249.0,71248.0,0.88855409]
[1717617963525,0.00272,71249.0,71248.0,0.89355409]
[1717617963728,0.00272,71249.0,71248.0,0.90055409]
[1717617963931,0.00272,71249.0,71248.0,0.88855409]
[1717617964169,0.00272,71249.0,71248.0,0.87855409]
[1717617964312,0.00272,71249.0,71248.0,0.90055409]
[1717617964526,0.00635,71254.0,71253.0,0.45193917]
[1717617964728,0.00635,71254.0,71253.0,0.64199358]
[1717617966772,0.00635,71254.0,71253.0,0.64699358]
[1717617967387,0.00635,71254.0,71253.0,0.64199358]
[1717617967600,0.00635,71254.0,71253.0,0.64699358]
[1717617967973,0.00635,71254.0,71253.0,0.65399358]
[1717617968400,0.00635,71254.0,71253.0,0.64199358]
[1717617968604,0.00635,71254.0,71253.0,0.64899358]
[1717617970116,0.00635,71254.0,71253.0,0.65399358]
[1717617970238,0.00635,71254.0,71253.0,0.66399358]
[1717617971448,0.00635,71254.0,71253.0,0.94468258]
[1717617971623,0.00635,71254.0,71253.0,1.44738258]
[1717617972063,0.00635,71254.0,71253.0,1.48885875]
[1717617972287,0.00635,71254.0,71253.0,1.59180151]
[1717617972512,0.00635,71254.0,71253.0,1.87249051]
[1717617974257,0.00635,71254.0,71253.0,1.70199051]
[1717617974474,0.00635,71254.0,71253.0,1.76444135]
[1717617974681,0.00635,71254.0,71253.0,1.70199051]
[1717617978400,0.00635,71254.0,71253.0,1.76444135]
[1717617978752,0.00635,71254.0,71253.0,1.77307135]
[1717617979147,0.00635,71254.0,71253.0,1.71062051]
[1717617980297,0.00635,71254.0,71253.0,1.81431095]
[1717617982320,0.00635,71254.0,71253.0,1.73651095]
[1717617983088,0.00635,71254.0,71253.0,1.14700302]
[1717617983298,0.24725,71254.0,71253.0,0.53732932]
[1717617983506,0.24725,71254.0,71253.0,0.09533574]
[1717617983748,0.24725,71254.0,71253.0,0.012]
[1717617983749,0.27025,71254.0,71253.0,0.012]
[1717617984421,0.27025,71254.0,71253.0,0.007]
[1717617984619,0.077,71251.0,71250.0,0.14035]
[1717617984831,0.2409,71251.0,71250.0,0.19013411]
[1717617986283,0.2409,71251.0,71250.0,0.29013411]
[1717617986492,0.2409,71251.0,71250.0,0.50172928]
[1717617987315,0.2409,71251.0,71250.0,0.50272928]
[1717617987868,0.2409,71251.0,71250.0,0.40472928]
[1717617988099,0.2409,71251.0,71250.0,0.50272928]
[1717617988481,0.2409,71251.0,71250.0,0.60272928]
[1717617988722,0.2409,71251.0,71250.0,0.60572928]
[1717617989391,0.00635,71254.0,71253.0,0.35193917]
[1717617989628,0.00635,71254.0,71253.0,0.5135115]
[1717617990777,0.00635,71254.0,71253.0,0.5235115]
[1717617990980,0.00635,71254.0,71253.0,0.6235115]
[1717617991930,0.00635,71254.0,71253.0,0.9042005]
[1717617993496,0.00635,71254.0,71253.0,0.9092005]
[1717617993897,0.00635,71254.0,71253.0,0.9042005]
[1717617994139,0.00635,71254.0,71253.0,0.9112005]
[1717617994402,0.00635,71254.0,71253.0,0.9092005]
[1717617994753,0.00635,71254.0,71253.0,0.9112005]
[1717617995320,0.00635,71254.0,71253.0,0.9162005]
[1717617995536,0.00635,71254.0,71253.0,0.6255115]
[1717617995746,0.00635,71254.0,71253.0,0.6285115]
[1717617996523,0.00635,71254.0,71253.0,0.6185115]
[1717617997122,0.00635,71254.0,71253.0,0.6205115]
[1717617997338,0.00635,71254.0,71253.0,0.5205115]
[1717617997536,0.00635,71254.0,71253.0,0.5185115]
[1717617997742,0.00635,71254.0,71253.0,0.6255115]
[1717617997945,0.00635,71254.0,71253.0,0.6205115]
[1717617998159,0.00635,71254.0,71253.0,0.6135115]
[1717617998363,0.08255,71254.0,71253.0,0.5185115]
[1717617998616,0.08255,71254.0,71253.0,0.6255115]
[1717617998929,0.08255,71254.0,71253.0,0.6135115]
[1717617999228,0.08255,71254.0,71253.0,0.9092005]
[1717618000080,0.00635,71254.0,71253.0,0.9092005]
[1717618000431,0.00635,71254.0,71253.0,0.9162005]
[1717618000656,0.00635,71254.0,71253.0,0.9092005]
[1717618001078,0.00635,71254.0,71253.0,0.9112005]
[1717618001281,0.00635,71254.0,71253.0,0.9042005]
[1717618001482,0.00635,71254.0,71253.0,0.8992005]
[1717618001702,0.00635,71254.0,71253.0,0.9062005]
[1717618001970,0.00635,71254.0,71253.0,0.9162005]
[1717618002161,0.00635,71254.0,71253.0,0.9092005]
[1717618002333,0.00635,71254.0,71253.0,0.8942005]
[1717618002776,0.00635,71254.0,71253.0,0.8992005]
[1717618003456,0.00635,71254.0,71253.0,0.9062005]
[1717618003858,0.00635,71254.0,71253.0,0.8992005]
[1717618004237,0.00635,71254.0,71253.0,0.9012005]
[1717618004437,0.00635,71254.0,71253.0,0.8992005]
[1717618004764,0.00635,71254.0,71253.0,0.9062005]
[1717618005123,0.00635,71254.0,71253.0,0.8992005]
[1717618005590,0.00635,71254.0,71253.0,0.9062005]
[1717618005812,0.00635,71254.0,71253.0,0.9012005]
[1717618005966,0.00635,71254.0,71253.0,0.9062005]
[1717618006998,0.00635,71254.0,71253.0,0.8992005]
[1717618007237,0.00635,71254.0,71253.0,0.9012005]
[1717618007451,0.00635,71254.0,71253.0,0.9112005]
[1717618007653,0.00635,71254.0,71253.0,0.9092005]
[1717618007854,0.00635,71254.0,71253.0,0.9162005]
[1717618008021,0.00635,71254.0,71253.0,0.9112005]
[1717618008423,0.00635,71254.0,71253.0,0.9042005]
[1717618008624,0.00635,71254.0,71253.0,0.9162005]
[1717618009525,0.00635,71254.0,71253.0,0.9062005]
[1717618009909,0.00635,71254.0,71253.0,0.90476016]
[1717618010114,0.00635,71254.0,71253.0,0.89776016]
[1717618010475,0.00635,71254.0,71253.0,0.90476016]
[1717618013444,0.00635,71254.0,71253.0,0.91476016]
[1717618013824,0.00635,71254.0,71253.0,0.90476016]
[1717618014027,0.00635,71254.0,71253.0,0.91476016]
[1717618015728,0.00635,71254.0,71253.0,0.90476016]
[1717618015896,0.00635,71254.0,71253.0,0.90362694]
[1717618016142,0.00635,71254.0,71253.0,0.91362694]
[1717618018177,0.00635,71254.0,71253.0,0.90362694]
[1717618018391,0.00635,71254.0,71253.0,0.91362694]
[1717618020330,0.00635,71254.0,71253.0,0.90362694]
[1717618021761,0.00635,71254.0,71253.0,0.91362694]
[1717618022974,0.00635,71254.0,71253.0,0.91457294]
[1717618023174,0.00635,71254.0,71253.0,0.90457294]
[1717618024040,0.00635,71254.0,71253.0,0.91457294]
[1717618025411,0.00635,71254.0,71253.0,0.90457294]
[1717618026996,0.00635,71254.0,71253.0,0.91457294]
[1717618029862,0.00635,71254.0,71253.0,1.19526194]
[1717618030260,0.00635,71254.0,71253.0,1.35396194]
[1717618030684,0.00635,71254.0,71253.0,1.57378087]
[1717618031102,0.00635,71254.0,71253.0,1.95446987]
[1717618031463,0.00635,71254.0,71253.0,2.03785576]
[1717618033190,0.00635,71254.0,71253.0,1.28526194]
[1717618033429,0.00635,71254.0,71253.0,1.36869974]
[1717618033957,0.00635,71254.0,71253.0,1.3783372]
[1717618034736,0.00635,71254.0,71253.0,1.6590262]
[1717618034912,0.00635,71254.0,71253.0,1.77075613]
[1717618035354,0.00635,71254.0,71253.0,1.68731833]
[1717618039054,0.00635,71254.0,71253.0,1.77078651]
[1717618039269,0.00635,71254.0,71253.0,1.68731833]
[1717618039477,0.00635,71254.0,71253.0,1.74992489]
[1717618039884,0.00635,71254.0,71253.0,1.49192489]
[1717618040112,0.00635,71254.0,71253.0,1.24750596]
[1717618040324,0.00635,71254.0,71253.0,0.94595259]
[1717618040533,0.00635,71254.0,71253.0,0.9042104]
[1717618040741,0.00635,71254.0,71253.0,0.9142104]
[1717618040978,0.00635,71254.0,71253.0,1.3517994]
[1717618041198,0.00635,71254.0,71253.0,1.4517994]
[1717618041402,0.00635,71254.0,71253.0,1.53526758]
[1717618043822,0.00635,71254.0,71253.0,1.53526384]
[1717618044034,0.00635,71254.0,71253.0,1.81595284]
[1717618044235,0.00635,71254.0,71253.0,1.83681896]
[1717618044441,0.00635,71254.0,71253.0,1.98123789]
[1717618051159,0.00635,71254.0,71253.0,1.98119387]
[1717618053133,0.00086,71256.0,71255.0,1.40254183]
[1717618053344,0.00086,71256.0,71255.0,1.81920068]
[1717618053567,0.00086,71256.0,71255.0,1.71496076]
[1717618055052,0.00086,71256.0,71255.0,1.71996076]
[1717618055825,0.00086,71256.0,71255.0,1.72696076]
[1717618056024,0.00086,71256.0,71255.0,1.77321497]
[1717618056454,0.00086,71256.0,71255.0,1.78021497]
[1717618057537,0.00863,71262.0,71259.0,1.102331]
[1717618057746,0.00863,71262.0,71259.0,1.71490476]
[1717618057947,0.002,71289.0,71262.0,1.28778983]
[1717618057948,0.1596,71278.0,71262.0,1.28778983]
[1717618058158,0.1596,71278.0,71262.0,1.66178109]
[1717618058774,0.2331,71281.0,71262.0,1.93998109]
[1717618059174,0.2331,71281.0,71262.0,1.94698109]
[1717618059387,0.2331,71281.0,71262.0,2.3317643]
[1717618059586,0.2331,71281.0,71262.0,2.3247643]
[1717618059790,0.2331,71281.0,71262.0,2.1317643]
[1717618060190,0.2331,71281.0,71262.0,2.3317643]
[1717618060370,0.2331,71281.0,71268.0,1.102205]
[1717618060572,0.2331,71281.0,71268.0,1.86664066]
[1717618062004,0.2331,71281.0,71268.0,2.03514066]
[1717618062184,0.2331,71281.0,71268.0,2.00049926]
[1717618062380,0.2331,71281.0,71268.0,2.08378207]
[1717618062580,0.2331,71281.0,71268.0,2.00049926]
[1717618063278,0.2331,71281.0,71268.0,2.10448584]
[1717618063638,0.2331,71281.0,71268.0,2.00049926]
[1717618064397,0.2331,71281.0,71268.0,2.08367049]
[1717618064761,0.0825,71281.0,71276.0,1.40225083]
[1717618064988,0.0783,71285.0,71276.0,1.64956713]
[1717618065323,0.0783,71285.0,71276.0,1.74956713]
[1717618065531,0.158,71286.0,71276.0,1.74956713]
[1717618065737,0.158,71286.0,71276.0,1.91516713]
[1717618065944,0.158,71286.0,71276.0,1.91716713]
[1717618066602,0.158,71286.0,71276.0,1.92416713]
[1717618066801,0.158,71286.0,71276.0,1.75156713]
[1717618067360,0.158,71286.0,71276.0,1.75856713]
[1717618067636,0.158,71286.0,71276.0,1.75156713]
[1717618067809,0.158,71286.0,71276.0,1.74956713]
[1717618068378,0.158,71286.0,71276.0,1.75456713]
[1717618068760,0.158,71286.0,71276.0,1.74956713]
[1717618069162,0.158,71286.0,71276.0,1.76156713]
[1717618069786,0.0783,71287.0,71276.0,1.76156713]
[1717618069787,0.2375,71287.0,71276.0,1.92066713]
[1717618070018,0.2375,71287.0,71276.0,1.99396713]
[1717618070439,0.2375,71287.0,71276.0,2.00096713]
[1717618070639,0.2375,71287.0,71276.0,1.99396713]
[1717618070842,0.2375,71287.0,71276.0,1.98896713]
[1717618071052,0.2375,71287.0,71276.0,1.99596713]
[1717618071902,0.2375,71287.0,71276.0,2.00096713]
[1717618072305,0.2375,71287.0,71276.0,1.99596713]
[1717618072575,0.2375,71287.0,71276.0,1.98896713]
[1717618072784,0.2375,71287.0,71276.0,1.99396713]
[1717618072990,0.2375,71287.0,71276.0,2.00096713]
[1717618076476,0.2375,71287.0,71276.0,1.69356713]
[1717618076694,0.2375,71287.0,71276.0,1.81769013]
[1717618077481,0.002,71289.0,71283.0,1.40215283]
[1717618077684,0.002,71289.0,71283.0,1.76782597]
[1717618078488,0.24825,71284.0,71283.0,1.26483604]
[1717618078795,0.24825,71284.0,71283.0,1.26983604]
[1717618079788,0.24825,71284.0,71283.0,1.27683604]
[1717618082885,0.24825,71284.0,71283.0,1.55740704]
[1717618085249,0.24825,71284.0,71283.0,1.56740704]
[1717618085463,0.24825,71284.0,71283.0,1.63540704]
[1717618086283,0.24825,71284.0,71283.0,1.62540704]
[1717618087145,0.24825,71284.0,71283.0,1.55740704]
[1717618087338,0.24825,71284.0,71283.0,1.77982597]
[1717618087339,0.00865,71284.0,71283.0,1.77982597]
[1717618087810,0.00865,71284.0,71283.0,1.85632597]
[1717618089198,0.00865,71284.0,71283.0,1.77982597]
[1717618089776,0.00865,71284.0,71283.0,1.77482597]
[1717618090227,0.00865,71284.0,71283.0,1.77982597]
[1717618090822,0.00865,71284.0,71283.0,1.77482597]
[1717618091033,0.00865,71284.0,71283.0,1.77982597]
[1717618091867,0.00865,71284.0,71283.0,1.70182597]
[1717618092019,0.00865,71284.0,71283.0,1.77982597]
[1717618092631,0.00865,71284.0,71283.0,1.70182597]
[1717618092834,0.00865,71284.0,71283.0,1.76982597]
[1717618093475,0.00865,71284.0,71283.0,1.70182597]
[1717618093670,0.00865,71284.0,71283.0,1.77982597]
[1717618100615,0.00865,71284.0,71283.0,1.71182597]
[1717618100802,0.00865,71284.0,71283.0,1.77982597]
[1717618101483,0.00865,71284.0,71283.0,1.82138465]
[1717618102346,0.00865,71284.0,71283.0,1.77982597]
[1717618102973,0.17345,71284.0,71283.0,1.70182597]
[1717618103398,0.17345,71284.0,71283.0,1.61974506]
[1717618103608,0.32275,71284.0,71283.0,1.15324087]
[1717618103818,0.32275,71284.0,71283.0,1.16983604]
[1717618104029,0.32275,71284.0,71283.0,1.17683604]
[1717618104030,0.25475,71284.0,71283.0,1.17683604]
[1717618104249,0.00865,71284.0,71283.0,1.45040704]
[1717618104471,0.00865,71284.0,71283.0,1.57002771]
[1717618104681,0.00865,71284.0,71283.0,1.53540704]
[1717618105555,0.00865,71284.0,71283.0,1.58574506]
[1717618105759,0.00865,71284.0,71283.0,1.73516399]
[1717618106163,0.00865,71284.0,71283.0,1.72516399]
[1717618106372,0.00865,71284.0,71283.0,1.84321571]
[1717618106577,0.00865,71284.0,71283.0,1.63806088]
[1717618106788,0.00865,71284.0,71283.0,1.84821571]
[1717618106983,0.00865,71284.0,71283.0,1.85021571]
[1717618107204,0.00865,71284.0,71283.0,1.84321571]
[1717618107337,0.00865,71284.0,71283.0,1.78587769]
[1717618107533,0.00865,71284.0,71283.0,1.79287769]
[1717618107740,0.00865,71284.0,71283.0,1.80287769]
[1717618108181,0.00865,71284.0,71283.0,1.90287769]
[1717618108542,0.00865,71284.0,71283.0,1.98599506]
[1717618109217,0.00865,71284.0,71283.0,1.98099506]
[1717618109626,0.00865,71284.0,71283.0,1.98599506]
[1717618109978,0.00865,71284.0,71283.0,1.97399506]
[1717618110182,0.00865,71284.0,71283.0,1.97463697]
[1717618110379,0.00865,71284.0,71283.0,1.98663697]
[1717618110837,0.00865,71284.0,71283.0,1.97963697]